fUSD/lending_fUSD_20250923
["ID","MTS","AMOUNT","RATE_DAILY","PERIOD"]
[387214962,1758652251339,-504.75968044,0.00024657,3]
[387214963,1758652251348,-400.0,0.00024657,3]
[387214964,1758652251358,-400.0,0.00024657,3]
[387214965,1758652251367,-400.0,0.00024657,3]
[387214966,1758652251377,-400.0,0.00024657,3]
[387214967,1758652251386,-734.67,0.00024657,3]
[387214968,1758652251397,-400.0,0.00024657,3]
[387214969,1758652251407,-729.99,0.00024657,3]
[387214970,1758652251416,-400.0,0.00024657,3]
[387214971,1758652251425,-1102.63,0.00024657,3]
[387214972,1758652251435,-500.0,0.00024657,3]
[387214973,1758652251446,-500.0,0.00024657,3]
[387214974,1758652251455,-500.0,0.00024657,3]
[387214975,1758652251465,-400.0,0.00024657,3]
[387214976,1758652251473,-500.0,0.00024657,3]
[387214977,1758652251482,-400.0,0.00024657,3]
[387214978,1758652251492,-400.0,0.00024657,3]
[387214979,1758652251501,-1575.66,0.00024657,3]
[387214980,1758652251511,-400.0,0.00024657,3]
[387214981,1758652251521,-444.87,0.00024657,3]
[387214982,1758652251531,-1112.98,0.00024657,3]
[387214983,1758652251540,-537.56,0.00024657,3]
[387214984,1758652251549,-400.0,0.00024657,3]
[387214985,1758652251558,-400.0,0.00024657,3]
[387214986,1758652251567,-400.0,0.00024657,3]
[387214987,1758652251576,-625.84,0.00024657,3]
[387214988,1758652251585,-400.0,0.00024657,3]
[387214989,1758652251594,-400.0,0.00024657,3]
[387214990,1758652251603,-400.0,0.00024657,3]
[387214991,1758652251612,-400.0,0.00024657,3]
[387214992,1758652251622,-489.11,0.00024657,3]
[387214993,1758652251632,-500.0,0.00024657,3]
[387214994,1758652251641,-500.0,0.00024657,3]
[387214995,1758652251650,-500.0,0.00024657,3]
[387214996,1758652251659,-424.42,0.00024657,3]
[387214997,1758652251669,-500.0,0.00024657,3]
[387214998,1758652251678,-500.0,0.00024657,3]
[387214999,1758652251689,-400.0,0.00024657,3]
[387215000,1758652251699,-500.0,0.00024657,3]
[387215001,1758652251708,-500.0,0.00024657,3]
[387215002,1758652251718,-500.0,0.00024657,3]
[387215003,1758652251728,-400.0,0.00024657,3]
[387215004,1758652251737,-509.3137711,0.00024657,3]
[387215005,1758652251746,-400.0,0.00024657,3]
[387215006,1758652251756,-400.0,0.00024657,3]
[387215007,1758652251765,-400.0,0.00024657,3]
[387215008,1758652251774,-253.72670954,0.00024657,3]
[387215009,1758652251787,-917.64,0.00024657,2]
[387215010,1758652251796,-917.64,0.00024657,2]
[387215011,1758652251805,-1838.51,0.00024657,3]
[387215012,1758652251814,-917.64,0.00024657,2]
[387215013,1758652251823,-400.0,0.00024657,3]
[387215014,1758652251832,-1526.39,0.00024657,3]
[387215015,1758652251842,-400.0,0.00024657,3]
[387215016,1758652251851,-917.64,0.00024657,2]
[387215017,1758652251860,-917.64,0.00024657,2]
[387215018,1758652251869,-917.64,0.00024657,2]
[387215019,1758652251879,-400.0,0.00024657,3]
[387215020,1758652251888,-917.64,0.00024657,2]
[387215021,1758652251898,-917.64,0.00024657,2]
[387215022,1758652251907,-593.19,0.00024657,3]
[387215023,1758652251917,-917.64,0.00024657,2]
[387215024,1758652251926,-917.64,0.00024657,2]
[387215025,1758652251936,-400.0,0.00024657,3]
[387215026,1758652251946,-917.64,0.00024657,2]
[387215027,1758652251955,-917.64,0.00024657,2]
[387215028,1758652251965,-824.28,0.00024657,3]
[387215029,1758652251974,-839.84,0.00024657,3]
[387215030,1758652251984,-917.64,0.00024657,2]
[387215031,1758652251994,-400.0,0.00024657,3]
[387215032,1758652252004,-400.0,0.00024657,3]
[387215033,1758652252013,-400.0,0.00024657,3]
[387215034,1758652252023,-400.0,0.00024657,3]
[387215035,1758652252033,-400.0,0.00024657,3]
[387215036,1758652252042,-400.0,0.00024657,3]
[387215037,1758652252052,-400.0,0.00024657,3]
[387215038,1758652252062,-400.0,0.00024657,3]
[387215039,1758652252071,-1080.4,0.00024657,3]
[387215040,1758652252081,-402.3615079,0.00024657,3]
[387215041,1758652252091,-1774.55,0.00024657,3]
[387215042,1758652252104,-500.0,0.00024657,3]
[387215043,1758652252114,-500.0,0.00024657,3]
[387215044,1758652252124,-400.0,0.00024657,3]
[387215045,1758652252134,-400.0,0.00024657,3]
[387215046,1758652252145,-500.0,0.00024657,3]
[387215047,1758652252155,-400.0,0.00024657,3]
[387215048,1758652252165,-400.0,0.00024657,3]
[387215049,1758652252175,-1612.11,0.00024657,3]
[387215050,1758652252190,-402.25653472,0.00024657,3]
[387215051,1758652252200,-1108.25,0.00024657,3]
[387215052,1758652252210,-400.0,0.00024657,3]
[387215053,1758652252221,-400.0,0.00024657,3]
[387215054,1758652252231,-500.0,0.00024657,3]
[387215055,1758652252243,-400.0,0.00024657,3]
[387215056,1758652252253,-500.0,0.00024657,3]
[387215057,1758652252264,-500.0,0.00024657,3]
[387215058,1758652252275,-524.83,0.00024657,3]
[387215059,1758652252284,-500.0,0.00024657,3]
[387215060,1758652252294,-400.0,0.00024657,3]
[387215061,1758652252306,-500.0,0.00024657,3]
[387215062,1758652252316,-500.0,0.00024657,3]
[387215063,1758652252326,-305.92057755,0.00024657,3]
[387215064,1758652252337,-400.0,0.00024657,3]
[387215065,1758652252349,-1181.51,0.00024657,3]
[387215066,1758652252359,-400.0,0.00024657,3]
[387215067,1758652252369,-400.0,0.00024657,3]
[387215068,1758652252379,-574.01,0.00024657,3]
[387215069,1758652252391,-574.01,0.00024657,3]
[387215070,1758652252401,-1306.57,0.00024657,3]
[387215071,1758652252411,-574.01,0.00024657,3]
[387215072,1758652252420,-574.01,0.00024657,3]
[387215073,1758652252430,-1472.5,0.00024657,3]
[387215074,1758652252439,-574.01,0.00024657,3]
[387215075,1758652252449,-574.01,0.00024657,3]
[387215076,1758652252458,-574.01,0.00024657,3]
[387215077,1758652252468,-400.0,0.00024657,3]
[387215078,1758652252478,-574.01,0.00024657,3]
[387215079,1758652252487,-574.01,0.00024657,3]
[387215080,1758652252497,-400.0,0.00024657,3]
[387215081,1758652252507,-574.01,0.00024657,3]
[387215082,1758652252516,-574.01,0.00024657,3]
[387215083,1758652252525,-574.01,0.00024657,3]
[387215084,1758652252535,-400.0,0.00024657,3]
[387215085,1758652252545,-574.01,0.00024657,3]
[387215086,1758652252554,-459.43,0.00024657,3]
[387215087,1758652252564,-400.0,0.00024657,3]
[387215088,1758652252574,-1551.31,0.00024657,3]
[387215089,1758652252583,-400.0,0.00024657,3]
[387215090,1758652252593,-400.0,0.00024657,3]
[387215091,1758652252603,-1667.11,0.00024657,3]
[387215092,1758652252613,-1874.65,0.00024657,3]
[387215093,1758652252623,-400.0,0.00024657,3]
[387215094,1758652252633,-500.0,0.00024657,3]
[387215095,1758652252644,-438.12,0.00024657,3]
[387215096,1758652252654,-400.0,0.00024657,3]
[387215097,1758652252665,-816.65,0.00024657,3]
[387215098,1758652252674,-400.0,0.00024657,3]
[387215099,1758652252684,-400.0,0.00024657,3]
[387215100,1758652252700,-400.0,0.00024657,3]
[387215101,1758652252711,-1659.29,0.00024657,3]
[387215102,1758652252722,-1620.89,0.00024657,3]
[387215103,1758652252732,-498.22,0.00024657,3]
[387215104,1758652252742,-400.0,0.00024657,3]
[387215105,1758652252751,-400.0,0.00024657,3]
[387215106,1758652252761,-400.0,0.00024657,3]
[387215107,1758652252771,-1308.99,0.00024657,3]
[387215108,1758652252781,-426.82,0.00024657,3]
[387215109,1758652252791,-400.0,0.00024657,3]
[387215110,1758652252800,-408.43141166,0.00024657,3]
[387215111,1758652252811,-1197.89,0.00024657,3]
[387215112,1758652252821,-746.1,0.00024657,3]
[387215113,1758652252831,-400.0,0.00024657,3]
[387215114,1758652252841,-295.89662696,0.00024657,3]
[387215115,1758652252850,-400.0,0.00024657,3]
[387215116,1758652252860,-400.0,0.00024657,3]
[387215117,1758652252870,-400.0,0.00024657,3]
[387215118,1758652252881,-603.0,0.00024657,3]
[387215119,1758652252891,-878.69,0.00024657,3]
[387215120,1758652252901,-538.8,0.00024657,3]
[387215121,1758652252911,-401.82656795,0.00024657,3]
[387215122,1758652252922,-400.0,0.00024657,3]
[387215123,1758652252932,-1112.97,0.00024657,3]
[387215124,1758652252942,-400.0,0.00024657,3]
[387215125,1758652252952,-567.86,0.00024657,3]
[387215126,1758652252962,-400.0,0.00024657,3]
[387215127,1758652252972,-1456.53,0.00024657,3]
[387215128,1758652252982,-400.0,0.00024657,3]
[387215129,1758652252992,-400.0,0.00024657,3]
[387215130,1758652253002,-400.0,0.00024657,3]
[387215131,1758652253012,-400.0,0.00024657,3]
[387215132,1758652253022,-1357.8,0.00024657,3]
[387215133,1758652253032,-951.84,0.00024657,3]
[387215134,1758652253042,-422.49,0.00024657,3]
[387215135,1758652253052,-400.0,0.00024657,3]
[387215136,1758652253062,-400.0,0.00024657,3]
[387215137,1758652253071,-1706.12,0.00024657,3]
[387215138,1758652253082,-406.79,0.00024657,3]
[387215139,1758652253092,-400.0,0.00024657,3]
[387215140,1758652253107,-400.0,0.00024657,3]
[387215141,1758652253117,-1120.38,0.00024657,3]
[387215142,1758652253127,-1202.79,0.00024657,3]
[387215143,1758652253138,-400.0,0.00024657,3]
[387215144,1758652253148,-400.0,0.00024657,3]
[387215145,1758652253158,-1051.73,0.00024657,3]
[387215146,1758652253168,-400.0,0.00024657,3]
[387215147,1758652253179,-400.0,0.00024657,3]
[387215148,1758652253190,-1348.59,0.00024657,3]
[387215149,1758652253200,-400.0,0.00024657,3]
[387215150,1758652253211,-461.91,0.00024657,3]
[387215151,1758652253222,-401.91041848,0.00024657,3]
[387215152,1758652253232,-400.0,0.00024657,3]
[387215153,1758652253242,-400.0,0.00024657,3]
[387215154,1758652253251,-773.6,0.00024657,3]
[387215155,1758652253261,-402.52820835,0.00024657,3]
[387215156,1758652253270,-400.0,0.00024657,3]
[387215157,1758652253280,-400.0,0.00024657,3]
[387215158,1758652253290,-401.41920127,0.00024657,3]
[387215159,1758652253300,-444.93,0.00024657,3]
[387215160,1758652253310,-400.0,0.00024657,3]
[387215161,1758652253319,-400.0,0.00024657,3]
[387215162,1758652253329,-1292.85,0.00024657,3]
[387215163,1758652253338,-436.46,0.00024657,3]
[387215164,1758652253348,-1722.29,0.00024657,3]
[387215165,1758652253358,-1061.24,0.00024657,3]
[387215166,1758652253368,-400.0,0.00024657,3]
[387215167,1758652253378,-1337.81,0.00024657,3]
[387215168,1758652253387,-400.0,0.00024657,3]
[387215169,1758652253401,-983.72,0.00024657,3]
[387215170,1758652253411,-400.0,0.00024657,3]
[387215171,1758652253421,-400.0,0.00024657,3]
[387215172,1758652253431,-400.0,0.00024657,3]
[387215173,1758652253441,-823.9,0.00024657,3]
[387215174,1758652253451,-1800.1,0.00024657,3]
[387215175,1758652253460,-400.0,0.00024657,3]
[387215176,1758652253469,-400.71470493,0.00024657,3]
[387215177,1758652253479,-400.0,0.00024657,3]
[387215178,1758652253489,-1237.69,0.00024657,3]
[387215179,1758652253499,-400.0,0.00024657,3]
[387215180,1758652253509,-400.0,0.00024657,3]
[387215181,1758652253519,-1694.07,0.00024657,3]
[387215182,1758652253529,-982.8,0.00024657,3]
[387215183,1758652253539,-1055.06,0.00024657,3]
[387215184,1758652253549,-400.0,0.00024657,3]
[387215185,1758652253559,-400.0,0.00024657,3]
[387215186,1758652253569,-400.0,0.00024657,3]
[387215187,1758652253579,-400.0,0.00024657,3]
[387215188,1758652253589,-400.0,0.00024657,3]
[387215189,1758652253599,-400.0,0.00024657,3]
[387215190,1758652253608,-1042.58,0.00024657,3]
[387215191,1758652253618,-1166.53,0.00024657,3]
[387215192,1758652253627,-400.0,0.00024657,3]
[387215193,1758652253637,-961.56,0.00024657,3]
[387215194,1758652253648,-400.0,0.00024657,3]
[387215195,1758652253658,-400.0,0.00024657,3]
[387215196,1758652253668,-400.0,0.00024657,3]
[387215197,1758652253678,-522.5,0.00024657,3]
[387215198,1758652253687,-691.83,0.00024657,3]
[387215199,1758652253696,-400.0,0.00024657,3]
[387215200,1758652253706,-400.0,0.00024657,3]
[387215201,1758652253715,-400.0,0.00024657,3]
[387215202,1758652253725,-971.27,0.00024657,3]
[387215203,1758652253735,-532.49,0.00024657,3]
[387215204,1758652253745,-267.67794051,0.00024657,3]
[387215205,1758652253754,-400.0,0.00024657,3]
[387215206,1758652253764,-400.0,0.00024657,3]
[387215207,1758652253774,-400.0,0.00024657,3]
[387215208,1758652253784,-400.0,0.00024657,3]
[387215209,1758652253794,-1630.1,0.00024657,3]
[387215210,1758652253804,-400.0,0.00024657,3]
[387215211,1758652253813,-1263.91,0.00024657,3]
[387215212,1758652253823,-531.24,0.00024657,3]
[387215213,1758652253833,-400.0,0.00024657,3]
[387215214,1758652253842,-400.0,0.00024657,3]
[387215215,1758652253852,-400.0,0.00024657,3]
[387215216,1758652253862,-400.0,0.00024657,3]
[387215217,1758652253872,-400.0,0.00024657,3]
[387215218,1758652253883,-400.0,0.00024657,3]
[387215219,1758652253894,-1316.07,0.00024657,3]
[387215220,1758652253904,-400.0,0.00024657,3]
[387215221,1758652253914,-400.0,0.00024657,3]
[387215222,1758652253924,-602.29,0.00024657,3]
[387215223,1758652253934,-400.0,0.00024657,3]
[387215224,1758652253944,-1040.18,0.00024657,3]
[387215225,1758652253953,-400.0,0.00024657,3]
[387215226,1758652253963,-400.0,0.00024657,3]
[387215227,1758652253973,-500.0,0.00024657,3]
[387215228,1758652253983,-500.0,0.00024657,3]
[387215229,1758652253992,-500.0,0.00024657,3]
[387215230,1758652254002,-500.0,0.00024657,3]
[387215231,1758652254012,-500.0,0.00024657,3]
[387215232,1758652254021,-500.0,0.00024657,3]
[387215233,1758652254031,-500.0,0.00024657,3]
[387215234,1758652254041,-500.0,0.00024657,3]
[387215235,1758652254050,-400.0,0.00024657,3]
[387215236,1758652254060,-500.0,0.00024657,3]
[387215237,1758652254071,-500.0,0.00024657,3]
[387215238,1758652254080,-400.0,0.00024657,3]
[387215239,1758652254090,-400.0,0.00024657,3]
[387215240,1758652254102,-500.0,0.00024657,3]
[387215241,1758652254112,-408.2676831,0.00024657,3]
[387215242,1758652254122,-400.0,0.00024657,3]
[387215243,1758652254133,-500.0,0.00024657,3]
[387215244,1758652254143,-347.01099154,0.00024657,3]
[387215245,1758652254153,-400.0,0.00024657,3]
[387215246,1758652254162,-1328.62,0.00024657,3]
[387215247,1758652254172,-1754.15,0.00024657,3]
[387215248,1758652254182,-400.0,0.00024657,3]
[387215249,1758652254192,-400.0,0.00024657,3]
[387215250,1758652254202,-400.0,0.00024657,3]
[387215251,1758652254212,-683.8,0.00024657,3]
[387215252,1758652254222,-401.92309763,0.00024657,3]
[387215253,1758652254231,-1817.88,0.00024657,3]
[387215254,1758652254241,-589.91,0.00024657,3]
[387215255,1758652254550,-400.0,0.00024657,3]
[387215256,1758652254561,-300.0,0.00024657,3]
[387215257,1758652254572,-406.72,0.00024657,3]
[387215258,1758652254582,-542.37,0.00024657,3]
[387215259,1758652254592,-488.31,0.00024657,3]
[387215260,1758652254603,-400.0,0.00024657,3]
[387215261,1758652254613,-400.0,0.00024657,3]
[387215262,1758652254624,-776.82,0.00024657,3]
[387215263,1758652254635,-400.0,0.00024657,3]
[387215264,1758652254646,-617.23,0.00024657,3]
[387215265,1758652254657,-400.0,0.00024657,3]
[387215266,1758652254668,-778.37,0.00024657,3]
[387215267,1758652254679,-1608.49,0.00024657,3]
[387215268,1758652254690,-500.0,0.00024657,3]
[387215269,1758652254701,-400.0,0.00024657,3]
[387215270,1758652254712,-400.0,0.00024657,3]
[387215271,1758652254723,-970.87,0.00024657,3]
[387215272,1758652254734,-400.0,0.00024657,3]
[387215273,1758652254745,-420.46,0.00024657,3]
[387215274,1758652254755,-400.0,0.00024657,3]
[387215275,1758652254766,-400.0,0.00024657,3]
[387215276,1758652254776,-1127.56,0.00024657,3]
[387215277,1758652254785,-400.0,0.00024657,3]
[387215278,1758652254796,-895.03,0.00024657,3]
[387215279,1758652254806,-400.0,0.00024657,3]
[387215280,1758652254817,-400.0,0.00024657,3]
[387215281,1758652254827,-1063.73,0.00024657,3]
[387215282,1758652254838,-400.0,0.00024657,3]
[387215283,1758652254848,-400.0,0.00024657,3]
[387215284,1758652254858,-400.0,0.00024657,3]
[387215285,1758652254870,-970.48,0.00024657,3]
[387215286,1758652254880,-1436.28,0.00024657,3]
[387215287,1758652254891,-400.0,0.00024657,3]
[387215288,1758652254901,-1475.6,0.00024657,3]
[387215289,1758652254911,-400.0,0.00024657,3]
[387215290,1758652254921,-400.0,0.00024657,3]
[387215291,1758652254932,-400.0,0.00024657,3]
[387215292,1758652254942,-1474.17,0.00024657,3]
[387215294,1758652254954,-400.0,0.00024657,3]
[387215295,1758652254964,-400.0,0.00024657,3]
[387215296,1758652254974,-400.0,0.00024657,3]
[387215297,1758652254983,-1516.59,0.00024657,3]
[387215298,1758652254993,-400.0,0.00024657,3]
[387215299,1758652255003,-400.0,0.00024657,3]
[387215300,1758652255013,-400.0,0.00024657,3]
[387215301,1758652255024,-400.0,0.00024657,3]
[387215302,1758652255034,-481.1,0.00024657,3]
[387215303,1758652255045,-1175.05,0.00024657,3]
[387215304,1758652255054,-5308.28,0.00024657,3]
[387215305,1758652255065,-401.41712629,0.00024657,3]
[387215306,1758652255077,-401.18653345,0.00024657,3]
[387215307,1758652255087,-400.0,0.00024657,3]
[387215308,1758652255100,-1657.97,0.00024657,3]
[387215309,1758652255111,-413.99,0.00024657,3]
[387215310,1758652255122,-400.0,0.00024657,3]
[387215311,1758652255132,-400.0,0.00024657,3]
[387215312,1758652255143,-400.0,0.00024657,3]
[387215313,1758652255153,-400.0,0.00024657,3]
[387215314,1758652255164,-427.36,0.00024657,3]
[387215315,1758652255175,-400.0,0.00024657,3]
[387215316,1758652255186,-1322.04,0.00024657,3]
[387215317,1758652255197,-885.06,0.00024657,3]
[387215318,1758652255208,-400.0,0.00024657,3]
[387215319,1758652255218,-400.0,0.00024657,3]
[387215320,1758652255228,-478.83,0.00024657,3]
[387215321,1758652255238,-400.0,0.00024657,3]
[387215322,1758652255248,-400.0,0.00024657,3]
[387215323,1758652255258,-400.0,0.00024657,3]
[387215324,1758652255268,-918.4,0.00024657,3]
[387215325,1758652255278,-1545.86,0.00024657,3]
[387215326,1758652255288,-400.0,0.00024657,3]
[387215327,1758652255299,-431.8041056,0.00024657,3]
[387215328,1758652255309,-400.0,0.00024657,3]
[387215329,1758652255319,-732.8,0.00024657,3]
[387215330,1758652255329,-400.0,0.00024657,3]
[387215331,1758652255338,-400.0,0.00024657,3]
[387215332,1758652255348,-400.0,0.00024657,3]
[387215333,1758652255359,-400.0,0.00024657,3]
[387215334,1758652255369,-440.4103794,0.00024657,3]
[387215335,1758652255379,-400.0,0.00024657,3]
[387215336,1758652255390,-400.0,0.00024657,3]
[387215337,1758652255402,-400.0,0.00024657,3]
[387215338,1758652255413,-1011.22,0.00024657,3]
[387215339,1758652255423,-400.0,0.00024657,3]
[387215340,1758652255434,-1357.72,0.00024657,3]
[387215341,1758652255444,-416.96,0.00024657,3]
[387215342,1758652255454,-400.0,0.00024657,3]
[387215343,1758652255464,-845.00358338,0.00024657,3]
[387215344,1758652255474,-404.05,0.00024657,3]
[387215345,1758652255484,-400.0,0.00024657,3]
[387215346,1758652255494,-1585.07,0.00024657,3]
[387215347,1758652255504,-926.01,0.00024657,3]
[387215348,1758652255514,-912.93,0.00024657,3]
[387215349,1758652255524,-400.0,0.00024657,3]
[387215350,1758652255534,-703.94,0.00024657,3]
[387215351,1758652255544,-400.0,0.00024657,3]
[387215352,1758652255554,-400.0,0.00024657,3]
[387215353,1758652255564,-400.0,0.00024657,3]
[387215354,1758652255574,-412.87072781,0.00024657,3]
[387215355,1758652255584,-400.0,0.00024657,3]
[387215356,1758652255595,-1125.34,0.00024657,3]
[387215357,1758652255604,-1317.86,0.00024657,3]
[387215358,1758652255614,-1267.15,0.00024657,3]
[387215359,1758652255624,-400.0,0.00024657,3]
[387215360,1758652255635,-1058.18,0.00024657,3]
[387215361,1758652255646,-400.0,0.00024657,3]
[387215362,1758652255655,-400.0,0.00024657,3]
[387215363,1758652255666,-400.0,0.00024657,3]
[387215364,1758652255677,-400.0,0.00024657,3]
[387215365,1758652255687,-440.98,0.00024657,3]
[387215366,1758652255698,-1358.8,0.00024657,3]
[387215367,1758652255708,-400.0,0.00024657,3]
[387215368,1758652255718,-1579.62,0.00024657,3]
[387215369,1758652255728,-400.0,0.00024657,3]
[387215370,1758652255739,-400.0,0.00024657,3]
[387215371,1758652255749,-1579.62,0.00024657,3]
[387215372,1758652255760,-1579.62,0.00024657,3]
[387215373,1758652255771,-1579.62,0.00024657,3]
[387215374,1758652255781,-519.21848252,0.00024657,3]
[387215375,1758652255791,-1579.62,0.00024657,3]
[387215376,1758652255801,-535.07,0.00024657,3]
[387215377,1758652255811,-400.0,0.00024657,3]
[387215378,1758652255822,-1579.62,0.00024657,3]
[387215379,1758652255833,-1308.15,0.00024657,3]
[387215380,1758652255844,-513.67,0.00024657,3]
[387215381,1758652255855,-570.14,0.00024657,3]
[387215382,1758652255865,-400.0,0.00024657,3]
[387215383,1758652255876,-1579.62,0.00024657,3]
[387215384,1758652255886,-1579.62,0.00024657,3]
[387215385,1758652255898,-405.35,0.00024657,3]
[387215386,1758652255910,-1579.62,0.00024657,3]
[387215387,1758652255921,-1579.62,0.00024657,3]
[387215388,1758652255931,-400.0,0.00024657,3]
[387215389,1758652255944,-12971.09,0.00024657,3]
[387215390,1758652255953,-1579.62,0.00024657,3]
[387215391,1758652255964,-1579.62,0.00024657,3]
[387215392,1758652255974,-400.0,0.00024657,3]
[387215393,1758652255984,-1579.62,0.00024657,3]
[387215394,1758652255995,-568.85,0.00024657,3]
[387215395,1758652256005,-400.0,0.00024657,3]
[387215396,1758652256015,-1579.62,0.00024657,3]
[387215397,1758652256026,-2244.87,0.00024657,3]
[387215398,1758652256037,-1579.62,0.00024657,3]
[387215399,1758652256048,-1579.62,0.00024657,3]
[387215400,1758652256058,-1579.62,0.00024657,3]
[387215401,1758652256068,-400.0,0.00024657,3]
[387215402,1758652256079,-1579.62,0.00024657,3]
[387215403,1758652256089,-1232.45,0.00024657,3]
[387215404,1758652256102,-400.0,0.00024657,3]
[387215405,1758652256112,-400.0,0.00024657,3]
[387215406,1758652256122,-400.0,0.00024657,3]
[387215407,1758652256133,-727.55,0.00024657,3]
[387215408,1758652256145,-400.0,0.00024657,3]
[387215409,1758652256155,-432.06,0.00024657,3]
[387215410,1758652256166,-400.0,0.00024657,3]
[387215411,1758652256177,-400.0,0.00024657,3]
[387215412,1758652256186,-1107.36,0.00024657,3]
[387215413,1758652256196,-400.0,0.00024657,3]
[387215414,1758652256206,-937.75,0.00024657,3]
[387215415,1758652256215,-400.0,0.00024657,3]
[387215416,1758652256225,-400.0,0.00024657,3]
[387215417,1758652256234,-400.0,0.00024657,3]
[387215418,1758652256243,-400.0,0.00024657,3]
[387215419,1758652256253,-442.44,0.00024657,3]
[387215420,1758652256262,-400.0,0.00024657,3]
[387215421,1758652256272,-1075.31,0.00024657,3]
[387215422,1758652256282,-400.0,0.00024657,3]
[387215423,1758652256291,-400.0,0.00024657,3]
[387215424,1758652256301,-400.0,0.00024657,3]
[387215425,1758652256311,-897.76,0.00024657,3]
[387215426,1758652256320,-400.0,0.00024657,3]
[387215427,1758652256330,-1578.13,0.00024657,3]
[387215428,1758652256340,-400.0,0.00024657,3]
[387215429,1758652256350,-2018.05,0.00024657,3]
[387215430,1758652256360,-465.56,0.00024657,3]
[387215431,1758652256370,-1140.18,0.00024657,3]
[387215432,1758652256379,-400.0,0.00024657,3]
[387215433,1758652256389,-467.81089286,0.00024657,3]
[387215434,1758652256400,-459.73,0.00024657,3]
[387215435,1758652256410,-400.0,0.00024657,3]
[387215436,1758652256419,-400.0,0.00024657,3]
[387215437,1758652256428,-417.00837464,0.00024657,3]
[387215438,1758652256437,-400.0,0.00024657,3]
[387215439,1758652256447,-1168.491084,0.00024657,3]
[387215440,1758652256456,-660.93,0.00024657,3]
[387215441,1758652256466,-400.0,0.00024657,3]
[387215442,1758652256475,-479.74,0.00024657,3]
[387215443,1758652256485,-400.0,0.00024657,3]
[387215444,1758652256494,-993.54,0.00024657,3]
[387215445,1758652256503,-894.36,0.00024657,3]
[387215446,1758652256513,-400.0,0.00024657,3]
[387215447,1758652256522,-1258.97,0.00024657,3]
[387215448,1758652256532,-3757.22,0.00024657,3]
[387215449,1758652256542,-400.0,0.00024657,3]
[387215450,1758652256552,-12403.85,0.00024657,3]
[387215451,1758652256561,-400.0,0.00024657,3]
[387215452,1758652256571,-1251.46,0.00024657,3]
[387215453,1758652256580,-400.0,0.00024657,3]
[387215454,1758652256590,-400.0,0.00024657,3]
[387215455,1758652256599,-400.0,0.00024657,3]
[387215456,1758652256609,-400.0,0.00024657,3]
[387215457,1758652256619,-1477.0,0.00024657,3]
[387215458,1758652256630,-400.0,0.00024657,3]
[387215459,1758652256640,-400.0,0.00024657,3]
[387215460,1758652256654,-400.0,0.00024657,3]
[387215461,1758652256663,-427.48,0.00024657,3]
[387215462,1758652256673,-400.0,0.00024657,3]